bitfinex/quotes_SOLUSD_20241105
["timestamp","ask_amount","ask_price","bid_price","bid_amount"]
[1730768933519,6.3043,158.62,158.58,12.22452386]
[1730768934137,6.3043,158.62,158.57,58.07340786]
[1730768934538,12.22452386,158.61,158.56,12.22452386]
[1730768934722,12.22452386,158.61,158.57,2.27476728]
[1730768935044,18.52942386,158.61,158.57,2.27476728]
[1730768935625,6.3049,158.61,158.57,2.27476728]
[1730768936429,6.3049,158.61,158.56,18.53112386]
[1730768937520,12.22452386,158.61,158.56,18.53112386]
[1730768937856,12.22452386,158.61,158.56,6.3066]
[1730768938040,12.22452386,158.6,158.56,6.3066]
[1730768938735,12.22452386,158.61,158.56,6.3066]
[1730768939148,12.22452386,158.6,158.55,51.89469786]
[1730768939343,12.22452386,158.6,158.55,58.20179786]
[1730768939534,12.22452386,158.61,158.55,58.20179786]
[1730768940244,18.52952386,158.61,158.55,58.20179786]
[1730768940654,18.52952386,158.61,158.56,12.22452386]
[1730768940655,6.305,158.61,158.56,12.22452386]
[1730768940820,18.52952386,158.61,158.56,12.22452386]
[1730768941344,18.52952386,158.61,158.55,58.20179786]
[1730768941846,15.4246,158.63,158.55,15.7678]
[1730768941847,12.22452386,158.59,158.55,15.7678]
[1730768942027,12.22452386,158.6,158.55,15.7678]
[1730768942922,12.22452386,158.6,158.55,22.0749]
[1730768944334,6.3055,158.59,158.55,22.0749]
[1730768944539,6.3055,158.59,158.55,15.7678]
[1730768945248,12.22452386,158.57,158.52,22.3816733]
[1730768945451,12.22452386,158.56,158.52,22.3816733]
[1730768945751,12.22452386,158.54,158.52,0.3028733]
[1730768946323,18.53222386,158.54,158.52,0.3028733]
[1730768946723,12.22452386,158.53,158.52,0.3028733]
[1730768948732,18.53242386,158.53,158.52,0.3028733]
[1730768949647,38.78340386,158.53,158.52,0.3028733]
[1730768950231,18.78340386,158.53,158.52,0.3028733]
[1730768950647,38.78340386,158.53,158.52,0.3028733]
[1730768952157,18.53242386,158.53,158.52,0.3028733]
[1730768952529,38.53242386,158.53,158.52,0.3028733]
[1730768955127,18.53242386,158.53,158.52,0.3028733]
[1730768958653,20.0,158.52,158.44,0.3028733]
[1730768958853,12.22452386,158.47,158.44,0.3028733]
[1730768959059,12.22452386,158.49,158.44,0.3028733]
[1730768959552,12.22452386,158.48,158.44,0.3028733]
[1730768959765,12.22452386,158.47,158.44,0.3028733]
[1730768960052,12.22452386,158.48,158.44,0.3028733]
[1730768961457,18.53402386,158.49,158.44,6.6142733]
[1730768961846,18.53402386,158.49,158.44,0.3028733]
[1730768962246,18.53402386,158.49,158.44,12.52739716]
[1730768962558,18.53402386,158.49,158.44,0.3028733]
[1730768963356,12.22452386,158.48,158.44,0.3028733]
[1730768963548,12.22452386,158.51,158.46,12.22452386]
[1730768963948,6.0343,158.54,158.46,12.22452386]
[1730768963949,18.53282386,158.52,158.47,12.22452386]
[1730768964248,6.3083,158.52,158.47,12.22452386]
[1730768964445,12.22452386,158.51,158.46,34.31182386]
[1730768965667,12.22452386,158.52,158.46,34.31182386]
[1730768966167,12.22452386,158.51,158.46,34.31182386]
[1730768966335,12.22452386,158.52,158.47,12.22452386]
[1730768966531,18.53242386,158.53,158.47,12.22452386]
[1730768966754,18.53242386,158.53,158.47,18.53462386]
[1730768966962,6.3079,158.53,158.48,36.00140786]
[1730768967343,18.53242386,158.53,158.48,36.00140786]
[1730768968266,12.22452386,158.52,158.48,23.776884]
[1730768968566,12.22452386,158.51,158.47,15.7758]
[1730768968950,12.22452386,158.51,158.45,50.14082386]
[1730768969139,12.22452386,158.51,158.46,23.776884]
[1730768969340,12.22452386,158.51,158.46,36.00140786]
[1730768969752,12.22452386,158.52,158.46,36.00140786]
[1730768970142,18.53242386,158.53,158.47,12.22452386]
[1730768970340,12.22452386,158.52,158.47,12.22452386]
[1730768970741,18.53242386,158.53,158.47,12.22452386]
[1730768970941,18.53242386,158.53,158.48,12.22452386]
[1730768971159,18.53242386,158.53,158.47,12.35001386]
[1730768971343,18.53242386,158.53,158.48,23.776884]
[1730768972564,18.53242386,158.53,158.48,12.22452386]
[1730768972745,18.53242386,158.53,158.47,42.43689786]
[1730768973072,12.22452386,158.51,158.47,30.086884]
[1730768973241,12.22452386,158.51,158.46,15.7768]
[1730768973443,12.22452386,158.52,158.46,28.00132386]
[1730768973645,12.22452386,158.52,158.46,34.31202386]
[1730768974680,6.3087,158.51,158.47,12.22452386]
[1730768975472,18.53322386,158.51,158.46,34.31202386]
[1730768975974,12.22452386,158.52,158.46,34.31202386]
[1730768976668,12.22452386,158.52,158.46,12.22452386]
[1730768976972,12.22452386,158.52,158.47,12.22452386]
[1730768977886,12.22452386,158.53,158.47,12.22452386]
[1730768978177,6.3068,158.56,158.51,12.22452386]
[1730768978502,12.22452386,158.55,158.5,36.00140786]
[1730768978770,12.22452386,158.54,158.5,23.776884]
[1730768979543,18.53232386,158.54,158.49,15.7738]
[1730768979771,12.22452386,158.53,158.49,15.7738]
[1730768980951,18.53232386,158.54,158.49,15.7738]
[1730768981153,18.53232386,158.54,158.49,22.0833]
[1730768981783,6.3078,158.54,158.49,34.30782386]
[1730768981950,6.3078,158.54,158.5,12.22452386]
[1730768982151,12.22452386,158.56,158.51,12.22452386]
[1730768982152,6.3071,158.55,158.51,12.22452386]
[1730768982348,6.3071,158.55,158.5,12.22452386]
[1730768984087,6.3071,158.55,158.51,12.22452386]
[1730768984371,6.3071,158.55,158.5,12.22452386]
[1730768985476,18.53162386,158.55,158.5,12.22452386]
[1730768985769,12.22452386,158.54,158.49,34.30762386]
[1730768986470,18.53162386,158.55,158.49,34.30762386]
[1730768994554,18.53162386,158.55,158.49,27.99832386]
[1730768995983,18.53162386,158.55,158.49,34.30782386]
[1730768998495,6.3071,158.55,158.5,12.22452386]
[1730768998666,12.9476,158.58,158.53,12.22452386]
[1730768998980,6.3059,158.58,158.54,12.22452386]
[1730768999664,6.3047,158.61,158.57,12.22452386]
[1730768999875,6.3047,158.61,158.58,12.22452386]
[1730769000183,6.3047,158.61,158.56,12.22452386]
[1730769000483,12.22452386,158.59,158.54,12.22452386]
[1730769000785,12.22452386,158.58,158.53,12.22452386]
[1730769001161,12.22452386,158.58,158.54,2.27954452]
[1730769001383,12.22452386,158.59,158.54,14.50406838]
[1730769001685,12.22452386,158.61,158.55,12.22452386]
[1730769001871,12.3186,158.62,158.57,12.22452386]
[1730769002066,12.3186,158.62,158.54,23.776884]
[1730769002067,24.54312386,158.62,158.56,12.22452386]
[1730769003466,12.22452386,158.61,158.56,23.776884]
[1730769003666,24.54312386,158.62,158.56,36.00140786]
[1730769004458,12.22452386,158.61,158.56,36.00140786]
[1730769004665,6.3051,158.6,158.55,27.99232386]
[1730769005558,18.52962386,158.6,158.55,15.7678]
[1730769005777,18.52962386,158.6,158.54,18.53192386]
[1730769006173,6.3051,158.6,158.56,12.22452386]
[1730769006379,6.3051,158.6,158.55,12.22452386]
[1730769007909,6.3051,158.6,158.56,12.22452386]
[1730769008588,6.3046,158.62,158.57,12.22452386]
[1730769009180,12.98181957,158.63,158.59,12.22452386]
[1730769009503,31.51034343,158.63,158.58,23.776884]
[1730769011491,19.28581957,158.63,158.58,36.00140786]
[1730769011696,31.51034343,158.63,158.58,23.776884]
[1730769012487,19.28581957,158.63,158.58,42.30720786]
[1730769014497,19.28581957,158.63,158.58,36.00140786]
[1730769015709,19.28581957,158.63,158.58,42.30720786]
[1730769016001,19.28581957,158.63,158.61,12.22452386]
[1730769016002,12.98181957,158.63,158.61,12.22452386]
[1730769017321,12.98181957,158.63,158.62,12.22452386]
[1730769017840,6.3016,158.69,158.63,6.3039]
[1730769018122,6.3016,158.69,158.65,12.22452386]
[1730769019422,27.90729716,158.72,158.66,12.22452386]
[1730769020495,6.3008,158.71,158.66,12.22452386]
[1730769023716,12.22452386,158.69,158.63,12.22452386]
[1730769023903,12.22452386,158.68,158.64,23.776884]
[1730769024223,12.22452386,158.69,158.64,23.776884]
[1730769024521,12.22452386,158.68,158.62,34.28902386]
[1730769024720,12.22452386,158.68,158.63,23.776884]
[1730769025619,18.52682386,158.68,158.63,23.776884]
[1730769026130,18.52682386,158.68,158.63,36.00140786]
[1730769026721,6.3023,158.68,158.63,36.00140786]
[1730769028801,12.22452386,158.68,158.63,36.00140786]
[1730769029419,12.22452386,158.68,158.62,27.98502386]
[1730769029626,12.22452386,158.66,158.62,15.7605]
[1730769029825,12.22452386,158.66,158.61,6.3046]
[1730769030000,12.22452386,158.66,158.61,18.52912386]
[1730769030705,18.52682386,158.67,158.61,18.52912386]
[1730769031507,6.3023,158.67,158.62,12.22452386]
[1730769031709,6.3023,158.67,158.63,12.22452386]
[1730769032233,6.3023,158.67,158.62,12.22452386]
[1730769032810,18.52682386,158.67,158.62,12.22452386]
[1730769033126,18.52682386,158.67,158.61,36.00140786]
[1730769034635,12.22452386,158.65,158.6,12.22452386]
[1730769034838,12.22452386,158.66,158.6,12.22452386]
[1730769035011,12.22452386,158.66,158.61,12.22452386]
[1730769035336,12.22452386,158.66,158.6,12.22452386]
[1730769035515,6.3031,158.65,158.6,12.22452386]
[1730769037313,6.3031,158.65,158.61,12.22452386]
[1730769037508,6.3028,158.66,158.62,12.22452386]
[1730769038823,12.22452386,158.64,158.59,27.98842386]
[1730769039013,12.22452386,158.65,158.59,27.98842386]
[1730769039411,12.22452386,158.65,158.6,12.22452386]
[1730769039612,35.08292386,158.66,158.6,12.22452386]
[1730769042236,35.08292386,158.66,158.59,22.0694]
[1730769042237,12.22452386,158.65,158.59,27.98842386]
[1730769042424,12.22452386,158.63,158.57,12.22452386]
[1730769042832,12.22452386,158.64,158.58,12.22452386]
[1730769043531,6.3039,158.63,158.58,12.22452386]
[1730769044337,18.52842386,158.63,158.57,42.30770786]
[1730769044539,12.22452386,158.62,158.57,23.776884]
[1730769045540,6.3055,158.59,158.54,18.53162386]
[1730769045717,6.3055,158.59,158.53,27.99422386]
[1730769045718,18.53002386,158.59,158.53,27.99422386]
[1730769045911,12.22452386,158.58,158.54,2.2740938]
[1730769046133,18.53002386,158.59,158.53,27.99422386]
[1730769046443,18.53002386,158.59,158.53,34.30212386]
[1730769046816,6.3055,158.59,158.56,12.22452386]
[1730769047020,6.3052,158.6,158.56,12.22452386]
[1730769047212,12.22452386,158.58,158.53,15.7697]
[1730769047638,6.3063,158.57,158.53,15.7697]
[1730769048322,6.3063,158.57,158.53,27.99422386]
[1730769048520,6.3063,158.57,158.54,12.22452386]
[1730769049531,18.52962386,158.6,158.55,12.22452386]
[1730769049827,6.3051,158.6,158.55,12.22452386]
[1730769050233,6.3051,158.6,158.56,12.22452386]
[1730769053627,6.3051,158.6,158.55,12.22452386]
[1730769054526,18.52962386,158.6,158.55,12.22452386]
[1730769054730,6.3051,158.6,158.55,12.22452386]
[1730769055149,6.3051,158.6,158.56,12.22452386]
[1730769056728,6.3051,158.6,158.55,12.22452386]
[1730769057438,6.3051,158.6,158.56,12.22452386]
[1730769058021,6.3051,158.6,158.54,45.853184]
[1730769058022,6.3051,158.6,158.55,12.22452386]
[1730769059448,18.52962386,158.6,158.55,12.35001386]
[1730769059654,6.3051,158.6,158.56,23.776884]
[1730769061048,6.3051,158.6,158.56,12.22452386]
[1730769064125,6.3051,158.6,158.55,36.12689786]
[1730769064636,18.52962386,158.6,158.55,23.776884]
[1730769065464,6.3051,158.6,158.55,36.00140786]
[1730769067454,27.44102386,158.61,158.55,36.00140786]
[1730769067455,6.3048,158.61,158.58,12.22452386]
[1730769067752,6.3048,158.61,158.55,45.851684]
[1730769067753,6.3039,158.63,158.59,12.22452386]
[1730769068654,18.52802386,158.64,158.58,12.22452386]
[1730769069365,12.22452386,158.61,158.56,0.12549]
[1730769069546,12.22452386,158.61,158.56,12.22452386]
[1730769070146,12.22452386,158.62,158.56,12.22452386]
[1730769070348,12.22452386,158.63,158.57,12.22452386]
[1730769072994,6.3043,158.62,158.57,12.22452386]
[1730769075165,6.3043,158.62,158.59,12.22452386]
[1730769076470,6.3035,158.64,158.6,12.22452386]
[1730769077374,6.3031,158.65,158.6,12.22452386]
[1730769077551,6.3031,158.65,158.61,12.22452386]
[1730769078266,18.52762386,158.65,158.59,12.22452386]
[1730769078659,6.3039,158.63,158.59,12.22452386]
[1730769078857,18.52842386,158.63,158.59,23.776884]
[1730769079461,6.3039,158.63,158.59,23.776884]
[1730769079869,6.3039,158.63,158.59,36.00140786]
[1730769081160,6.3035,158.64,158.59,36.00140786]
[1730769081974,6.3035,158.64,158.6,12.22452386]
[1730769082360,6.3035,158.64,158.59,36.00140786]
[1730769082553,12.22452386,158.64,158.59,36.00140786]
[1730769084478,12.22452386,158.61,158.55,12.22452386]
[1730769084998,34.28832386,158.63,158.58,12.22452386]
[1730769085290,6.3039,158.63,158.58,12.22452386]
[1730769085453,6.3039,158.63,158.59,12.22452386]
[1730769086376,6.3031,158.65,158.62,12.22452386]
[1730769087468,18.52762386,158.65,158.61,23.776884]
[1730769087663,18.52762386,158.65,158.6,23.776884]
[1730769087871,12.22452386,158.64,158.59,23.776884]
[1730769088262,12.22452386,158.64,158.59,36.00140786]
[1730769089160,6.3039,158.63,158.59,36.00140786]
[1730769089359,6.3039,158.63,158.6,12.22452386]
[1730769090574,6.3031,158.65,158.61,12.22452386]
[1730769091257,6.3031,158.65,158.6,12.22452386]
[1730769091457,6.3031,158.65,158.61,12.22452386]
[1730769093483,6.3031,158.65,158.62,12.22452386]
[1730769094171,6.3031,158.65,158.63,12.22452386]
[1730769094370,6.3031,158.65,158.61,23.776884]
[1730769094371,6.3031,158.65,158.62,12.22452386]
[1730769094563,6.3031,158.65,158.61,36.00140786]
[1730769094967,6.3031,158.65,158.62,12.22452386]
[1730769095588,6.3031,158.65,158.61,36.00140786]
[1730769095767,18.52762386,158.65,158.6,27.98742386]
[1730769099088,6.3031,158.65,158.61,12.22452386]
[1730769099566,6.3031,158.65,158.6,27.98742386]
[1730769100292,6.3031,158.65,158.6,34.29252386]
[1730769101386,6.3031,158.65,158.61,12.22452386]
[1730769103584,6.3031,158.65,158.6,12.22452386]
[1730769103790,6.3031,158.65,158.6,36.00140786]
[1730769104697,6.3031,158.65,158.6,12.22452386]
[1730769107775,6.3031,158.65,158.59,6.3052]
[1730769107776,12.22452386,158.64,158.59,12.22452386]
[1730769107985,12.22452386,158.64,158.58,36.12689786]
[1730769108403,12.22452386,158.64,158.58,36.00140786]
[1730769108776,6.3031,158.65,158.6,12.22452386]
[1730769109172,18.52762386,158.65,158.59,12.22452386]
[1730769110990,6.3031,158.65,158.6,12.22452386]
[1730769113691,6.3031,158.65,158.61,12.22452386]
[1730769114007,6.3031,158.65,158.62,12.22452386]
[1730769114177,12.97885456,158.66,158.64,12.22452386]
[1730769116411,19.28155456,158.66,158.64,12.22452386]
[1730769117910,19.28155456,158.66,158.63,12.22452386]
[1730769118309,19.28155456,158.66,158.65,12.22452386]
[1730769118310,12.97885456,158.66,158.65,12.22452386]
[1730769118484,12.97885456,158.66,158.65,36.00140786]
[1730769119384,12.97885456,158.66,158.64,12.22452386]
[1730769119584,12.97885456,158.66,158.63,12.22452386]
[1730769120015,12.97885456,158.66,158.62,12.22452386]
[1730769120209,19.28195456,158.66,158.62,12.22452386]
[1730769120594,31.50647842,158.66,158.61,27.98592386]
[1730769120802,19.28195456,158.66,158.61,27.98592386]
[1730769121395,19.28195456,158.66,158.62,12.22452386]
[1730769123210,19.28195456,158.66,158.63,12.22452386]
[1730769124110,19.28195456,158.66,158.62,36.00140786]
[1730769126524,19.28195456,158.66,158.62,23.776884]
[1730769126915,31.50647842,158.66,158.61,15.7614]
[1730769127599,19.28195456,158.66,158.61,27.98592386]
[1730769127793,31.50647842,158.66,158.61,15.7614]
[1730769128298,12.22452386,158.65,158.61,15.7614]
[1730769128498,6.3032,158.65,158.61,15.7614]
[1730769128711,6.3032,158.65,158.61,34.29062386]
[1730769128921,19.28165456,158.66,158.63,12.22452386]
[1730769129522,19.28175456,158.66,158.64,12.22452386]
[1730769129696,19.28175456,158.66,158.63,12.22452386]
[1730769130914,12.97885456,158.66,158.64,12.22452386]
[1730769133105,19.28165456,158.66,158.62,36.00140786]
[1730769133305,19.28165456,158.66,158.63,2.27996356]
[1730769133528,19.28165456,158.66,158.63,12.22452386]
[1730769136928,12.97885456,158.66,158.63,12.22452386]
[1730769137428,12.97885456,158.66,158.64,12.22452386]
[1730769139642,12.97885456,158.66,158.63,12.22452386]
[1730769140424,12.97885456,158.66,158.64,12.22452386]
[1730769140623,12.97885456,158.66,158.63,12.22452386]
[1730769143927,31.50637842,158.66,158.62,23.776884]
[1730769144104,12.22452386,158.65,158.59,18.52972386]
[1730769144310,12.22452386,158.65,158.6,2.27959549]
[1730769144514,31.50637842,158.66,158.61,2.27959549]
[1730769144838,31.50637842,158.66,158.61,12.22452386]
[1730769145324,19.28185456,158.66,158.62,12.22452386]
[1730769146122,19.28185456,158.66,158.61,36.00140786]
[1730769147229,12.97885456,158.66,158.65,12.22452386]
[1730769148029,12.97885456,158.66,158.64,12.22452386]
[1730769148414,12.97885456,158.66,158.63,12.22452386]
[1730769148619,12.97885456,158.66,158.63,36.00140786]
[1730769150236,12.97885456,158.66,158.64,12.22452386]
[1730769150626,12.97885456,158.66,158.63,36.00140786]
[1730769151644,12.97885456,158.66,158.63,42.30520786]
[1730769152343,12.97885456,158.66,158.64,12.22452386]
[1730769153218,12.97885456,158.66,158.63,36.00140786]
[1730769153623,12.97885456,158.66,158.63,23.776884]
[1730769153825,12.97885456,158.66,158.63,36.00140786]
[1730769154044,12.97885456,158.66,158.64,12.22452386]
[1730769154431,12.97885456,158.66,158.65,12.22452386]
[1730769154754,12.97885456,158.66,158.64,12.22452386]
[1730769155337,12.97885456,158.66,158.65,42.30450786]
[1730769155533,6.6032733,158.72,158.66,24.027864]
[1730769155831,0.3028733,158.72,158.71,12.22452386]
[1730769156146,0.3028733,158.72,158.71,36.00140786]
[1730769156325,0.3028733,158.72,158.71,36.12689786]
[1730769157351,0.3028733,158.72,158.71,42.42769786]
[1730769158540,0.3028733,158.72,158.71,42.67867786]
[1730769158757,0.3028733,158.72,158.71,111.5767733]
[1730769159327,0.3028733,158.72,158.71,62.67867786]
[1730769160145,0.3028733,158.72,158.71,62.55318786]
[1730769160363,0.3028733,158.72,158.71,42.55318786]
[1730769161653,0.3028733,158.72,158.71,42.42769786]
[1730769164557,0.3028733,158.72,158.71,42.55318786]
[1730769165565,0.3028733,158.72,158.71,36.00140786]
[1730769165770,0.3028733,158.72,158.71,42.30220786]
[1730769169464,0.3028733,158.72,158.71,36.00140786]
[1730769169651,0.3028733,158.72,158.71,42.30220786]
[1730769171360,0.3028733,158.72,158.71,42.42769786]
[1730769172771,0.3028733,158.72,158.71,111.5767733]
[1730769172973,0.3028733,158.79,158.72,44.153354]
[1730769173182,0.3028733,158.79,158.78,36.00140786]
[1730769176180,0.3028733,158.79,158.78,42.29940786]
[1730769176356,0.3028733,158.79,158.78,42.42489786]
[1730769178776,0.3028733,158.79,158.78,23.776884]
[1730769180450,0.3028733,158.79,158.78,36.00140786]
[1730769181178,0.3028733,158.79,158.77,36.00140786]
[1730769181957,6.6006733,158.79,158.74,12.22452386]
[1730769182161,6.6006733,158.79,158.75,12.22452386]
[1730769182687,6.6006733,158.79,158.76,12.22452386]
[1730769182983,6.6006733,158.79,158.77,12.22452386]
[1730769183393,0.3028733,158.79,158.78,12.22452386]
[1730769183563,0.3028733,158.79,158.77,12.22452386]
[1730769183766,6.6005733,158.79,158.76,23.776884]
[1730769184264,6.6005733,158.79,158.76,12.22452386]
[1730769184483,6.6005733,158.79,158.77,12.22452386]
[1730769184680,6.6005733,158.79,158.75,27.97152386]
[1730769185063,6.6005733,158.79,158.76,12.22452386]
[1730769186378,6.6005733,158.79,158.77,12.22452386]
[1730769186878,6.6005733,158.79,158.76,12.22452386]
[1730769188698,6.6005733,158.79,158.75,15.747]
[1730769188699,0.3028733,158.79,158.77,12.22452386]
[1730769189575,0.3028733,158.79,158.78,36.00140786]
[1730769191901,0.3028733,158.79,158.78,42.29940786]
[1730769193295,0.3028733,158.79,158.78,36.00140786]
[1730769193800,0.3028733,158.79,158.78,23.776884]
[1730769194373,0.3028733,158.79,158.76,15.747]
[1730769194674,6.6006733,158.79,158.75,18.52362386]
[1730769195096,6.6006733,158.79,158.75,12.22452386]
[1730769195275,6.6006733,158.79,158.76,12.22452386]
[1730769197604,6.6006733,158.79,158.74,12.22452386]
[1730769197810,12.22452386,158.77,158.72,12.22452386]
[1730769198106,12.22452386,158.78,158.72,12.22452386]
[1730769198693,12.22452386,158.76,158.69,6.3014]
[1730769198895,12.22452386,158.75,158.69,18.52592386]
[1730769199296,6.2988,158.76,158.71,12.22452386]
[1730769199495,18.52332386,158.76,158.7,12.22452386]
[1730769200000,18.52332386,158.76,158.71,23.776884]
[1730769200293,18.52332386,158.76,158.7,12.22452386]
[1730769201299,18.52332386,158.76,158.71,12.22452386]
[1730769201497,18.52332386,158.76,158.67,23.776884]
[1730769201498,18.52332386,158.76,158.7,12.22452386]
[1730769202690,18.52332386,158.76,158.71,12.22452386]
[1730769204702,18.52332386,158.76,158.7,36.00140786]
[1730769207213,18.52332386,158.76,158.71,6.3008]
[1730769207395,6.2988,158.76,158.72,12.22452386]
[1730769208192,6.2988,158.76,158.71,18.52532386]
[1730769208516,12.22452386,158.75,158.7,30.077884]
[1730769208803,12.22452386,158.75,158.7,23.776884]
[1730769209188,18.52332386,158.76,158.7,36.00140786]
[1730769210584,6.2988,158.76,158.71,12.22452386]
[1730769215879,6.2988,158.76,158.71,18.52522386]
[1730769216811,6.2988,158.76,158.71,34.27722386]
[1730769217801,6.2988,158.76,158.72,12.22452386]
[1730769218187,18.52332386,158.76,158.71,22.0527]
[1730769218587,6.2988,158.76,158.71,34.27722386]
[1730769219009,6.2988,158.76,158.7,23.776884]
[1730769219188,18.52332386,158.76,158.71,23.776884]
[1730769220422,12.22452386,158.75,158.7,23.776884]
[1730769221301,18.52332386,158.76,158.7,36.00140786]
[1730769221830,6.2988,158.76,158.71,12.22452386]
[1730769222625,18.52332386,158.76,158.7,42.30230786]
[1730769223328,12.22452386,158.72,158.66,12.22452386]
[1730769223501,12.22452386,158.71,158.65,34.28462386]
[1730769223902,12.22452386,158.71,158.65,27.98162386]
[1730769224197,18.52182386,158.71,158.65,27.98162386]
[1730769225529,6.3011,158.7,158.65,27.98162386]
[1730769227120,6.3011,158.7,158.66,12.22452386]
[1730769228419,12.22452386,158.74,158.68,12.22452386]
[1730769228722,6.3,158.73,158.68,12.22452386]
[1730769229729,12.22452386,158.73,158.68,12.22452386]
[1730769230518,6.2996,158.74,158.69,12.22452386]
[1730769230729,6.2996,158.74,158.7,12.22452386]
[1730769232499,6.2996,158.74,158.71,12.22452386]
[1730769232922,15.4838,158.76,158.72,12.22452386]
[1730769233125,18.52252386,158.78,158.72,12.22452386]
[1730769233427,12.22452386,158.77,158.71,12.22452386]
[1730769234140,6.2988,158.76,158.71,12.22452386]
[1730769234816,12.8513733,158.79,158.74,12.22452386]
[1730769235004,12.8513733,158.79,158.75,12.22452386]
[1730769236425,12.8513733,158.79,158.74,36.00140786]
[1730769237797,12.8513733,158.79,158.75,12.22452386]
[1730769238025,12.8513733,158.79,158.74,36.00140786]
[1730769239409,25.07589716,158.79,158.74,36.00140786]
[1730769239604,12.22452386,158.77,158.72,27.97552386]
[1730769240728,18.52272386,158.78,158.72,27.97552386]
[1730769242502,6.2982,158.78,158.73,12.22452386]
[1730769243005,18.52272386,158.78,158.73,12.22452386]
[1730769243199,6.2982,158.78,158.73,12.22452386]
[1730769243405,6.2982,158.78,158.74,12.22452386]
[1730769243731,0.3028733,158.79,158.76,12.22452386]
[1730769244232,6.6004733,158.79,158.75,12.22452386]
[1730769245327,18.82499716,158.79,158.75,23.776884]
[1730769245517,6.6004733,158.79,158.75,23.776884]
[1730769246333,6.6004733,158.79,158.75,36.00140786]
[1730769246831,6.6004733,158.79,158.75,42.30050786]
[1730769247228,6.6004733,158.79,158.75,30.075984]
[1730769248228,6.6004733,158.79,158.75,42.30050786]
[1730769248534,6.6004733,158.79,158.75,30.075984]
[1730769249333,6.6004733,158.79,158.75,42.30050786]
[1730769255341,6.6004733,158.79,158.75,30.075984]
[1730769255518,12.22452386,158.78,158.74,23.776884]
[1730769255937,18.82499716,158.79,158.74,23.776884]
[1730769256338,18.82499716,158.79,158.74,36.00140786]
[1730769256831,6.6004733,158.79,158.74,42.30080786]
[1730769259424,6.6004733,158.79,158.74,36.00140786]
[1730769259928,18.82499716,158.79,158.74,36.00140786]
[1730769260750,6.6004733,158.79,158.74,36.00140786]
[1730769260930,6.6004733,158.79,158.74,42.30080786]
[1730769263647,18.82499716,158.79,158.74,23.776884]
[1730769263843,12.22452386,158.78,158.73,23.776884]
[1730769264039,12.22452386,158.76,158.71,18.52522386]
[1730769264248,12.22452386,158.75,158.7,18.52552386]
[1730769264855,12.22452386,158.76,158.7,18.52552386]
[1730769265046,12.22452386,158.76,158.71,12.22452386]
[1730769265231,6.2992,158.75,158.7,12.22452386]
[1730769265954,6.2992,158.75,158.71,12.22452386]
[1730769266161,6.2984,158.77,158.73,12.22452386]
[1730769266463,6.2984,158.77,158.72,12.22452386]
[1730769266861,18.52292386,158.77,158.72,12.22452386]
[1730769267931,12.22452386,158.76,158.71,12.22452386]
[1730769268128,12.22452386,158.76,158.7,42.30240786]
[1730769268334,18.52292386,158.77,158.71,12.22452386]
[1730769269262,18.52292386,158.77,158.72,12.22452386]
[1730769270665,18.52292386,158.77,158.72,23.776884]
[1730769272659,18.52292386,158.77,158.72,36.00140786]
[1730769273660,6.2984,158.77,158.72,36.00140786]
[1730769273964,18.52292386,158.77,158.72,36.00140786]
[1730769274668,18.52292386,158.77,158.72,23.776884]
[1730769275458,12.22452386,158.73,158.68,15.7545]
[1730769275637,12.22452386,158.73,158.67,18.52672386]
[1730769276355,12.22452386,158.73,158.68,12.22452386]
[1730769276734,6.3004,158.72,158.68,12.22452386]
[1730769277739,18.52492386,158.72,158.66,12.22452386]
[1730769277945,12.22452386,158.71,158.65,12.22452386]
[1730769278146,18.52492386,158.72,158.67,12.22452386]
[1730769278941,18.52492386,158.72,158.66,12.22452386]
[1730769279243,12.22452386,158.71,158.66,12.22452386]
[1730769280143,12.22452386,158.72,158.66,12.22452386]
[1730769280464,18.52492386,158.72,158.66,12.22452386]
[1730769283661,12.22452386,158.71,158.66,12.22452386]
[1730769284463,6.3011,158.7,158.66,12.22452386]
[1730769284779,6.3011,158.7,158.66,23.776884]
[1730769285670,6.3011,158.7,158.66,36.00140786]
[1730769286169,6.3011,158.7,158.66,23.776884]
[1730769288063,6.3011,158.7,158.66,42.30410786]
[1730769288250,12.22452386,158.72,158.66,42.30410786]
[1730769288449,12.22452386,158.72,158.66,23.776884]
[1730769288450,12.22452386,158.7,158.66,23.776884]
[1730769288652,12.22452386,158.69,158.64,12.22452386]
[1730769289152,12.22452386,158.69,158.64,23.776884]
[1730769289551,12.22452386,158.68,158.62,12.22452386]
[1730769289745,12.22452386,158.67,158.61,27.98592386]
[1730769290379,12.22452386,158.64,158.59,6.55542324]
[1730769290553,12.22452386,158.64,158.59,2.26876371]
[1730769290748,12.22452386,158.64,158.58,18.53022386]
[1730769291643,18.52842386,158.64,158.58,18.53022386]
[1730769292256,18.52842386,158.64,158.58,12.22452386]